bitfinex-derivatives/quotes_BTCF0:USTF0_20240910
["timestamp","ask_amount","ask_price","bid_price","bid_amount"]
[1725986867654,0.26311223,56856.0,56855.0,0.0547]
[1725986867948,0.08794,56854.0,56853.0,0.08794]
[1725986868152,0.21895939,56854.0,56853.0,0.08794]
[1725986868341,0.21935939,56854.0,56853.0,0.08794]
[1725986868851,0.21936484,56854.0,56853.0,0.08794]
[1725986869053,0.3775293,56854.0,56853.0,0.08794]
[1725986869450,0.21936484,56854.0,56853.0,0.08794]
[1725986869647,0.09234,56854.0,56853.0,0.08794]
[1725986869950,0.14932352,56854.0,56853.0,0.08794]
[1725986870149,0.22636484,56854.0,56853.0,0.08794]
[1725986871953,0.087943,56852.0,56849.0,0.2]
[1725986872157,0.14100134,56850.0,56849.0,0.2]
[1725986872457,0.21804266,56850.0,56849.0,0.2]
[1725986873445,0.21804266,56850.0,56849.0,0.202]
[1725986873957,0.07743873,56850.0,56849.0,0.289947]
[1725986874358,0.15817651,56853.0,56849.0,0.4768771]
[1725986874656,0.15817651,56853.0,56850.0,0.31807321]
[1725986874657,0.087945,56851.0,56850.0,0.31807321]
[1725986876260,0.087945,56851.0,56850.0,0.31907321]
[1725986876452,0.088945,56851.0,56850.0,0.31907321]
[1725986876854,0.088945,56851.0,56850.0,0.21436273]
[1725986878159,0.088945,56851.0,56850.0,0.30162719]
[1725986878357,0.17689,56851.0,56850.0,0.12641973]
[1725986878551,0.17689,56851.0,56850.0,0.001]
[1725986878961,0.17689,56851.0,56850.0,0.21349673]
[1725986879161,0.088945,56851.0,56850.0,0.08827018]
[1725986879351,0.088945,56851.0,56850.0,0.21347335]
[1725986879549,0.088945,56851.0,56850.0,0.08827018]
[1725986879755,0.088945,56851.0,56850.0,0.21359765]
[1725986880263,0.088945,56851.0,56850.0,0.12632747]
[1725986880464,0.001,56851.0,56850.0,0.21427347]
[1725986881161,0.001,56851.0,56850.0,0.31898395]
[1725986881351,0.001,56851.0,56850.0,0.088946]
[1725986881551,0.07804045,56851.0,56850.0,0.088946]
[1725986881867,0.03497238,56851.0,56850.0,0.088946]
[1725986882062,0.03497095,56851.0,56850.0,0.088946]
[1725986882365,0.03497095,56851.0,56850.0,0.30744454]
[1725986882661,0.001,56851.0,56850.0,0.288946]
[1725986882868,0.07803746,56851.0,56850.0,0.288946]
[1725986883068,0.03497095,56851.0,56850.0,0.816626]
[1725986883264,0.12405396,56851.0,56850.0,0.816626]
[1725986883569,0.03397074,56854.0,56853.0,0.175882]
[1725986883766,0.14020422,56866.0,56855.0,0.175876]
[1725986883767,0.12304488,56856.0,56855.0,0.175876]
[1725986884060,0.15820056,56863.0,56858.0,0.087933]
[1725986884061,0.12304289,56860.0,56858.0,0.087933]
[1725986884263,0.13610422,56866.0,56865.0,0.087923]
[1725986884466,0.0430571,56866.0,56865.0,0.207923]
[1725986884769,0.0430571,56866.0,56865.0,0.208323]
[1725986884956,0.15820056,56872.0,56865.0,0.1204]
[1725986885164,0.04305542,56871.0,56870.0,0.207915]
[1725986885465,0.15820056,56876.0,56871.0,0.087913]
[1725986885657,0.09701936,56875.0,56871.0,0.087913]
[1725986885966,0.13096304,56874.0,56873.0,0.12]
[1725986886169,0.100912,56872.0,56871.0,0.287913]
[1725986886471,0.14436604,56872.0,56871.0,0.087913]
[1725986887367,0.14436604,56872.0,56871.0,0.088913]
[1725986887669,0.14436604,56872.0,56871.0,0.288913]
[1725986888064,0.14436604,56872.0,56871.0,0.287913]
[1725986888265,0.14636604,56872.0,56871.0,0.288913]
[1725986888469,0.13336604,56872.0,56871.0,0.289913]
[1725986888771,0.13336604,56872.0,56871.0,0.089913]
[1725986889165,0.104312,56872.0,56871.0,0.089913]
[1725986889364,0.104312,56872.0,56871.0,0.002]
[1725986890361,0.087929,56862.0,56860.0,0.0041]
[1725986890665,0.088329,56861.0,56860.0,0.087928]
[1725986890970,0.08793,56860.0,56855.0,0.01863049]
[1725986891271,0.0004,56856.0,56855.0,0.0004]
[1725986891465,0.088337,56856.0,56855.0,0.0004]
[1725986891670,0.288337,56856.0,56855.0,0.0004]
[1725986892772,0.0024,56856.0,56855.0,0.288338]
[1725986893071,0.0024,56856.0,56855.0,0.0004]
[1725986893573,0.093337,56856.0,56855.0,0.0004]
[1725986894270,0.381274,56856.0,56855.0,0.0004]
[1725986897966,0.17588,56854.0,56853.0,0.0004]
[1725986898179,0.175904,56846.0,56845.0,0.05215672]
[1725986898473,0.08796,56841.0,56840.0,0.05215672]
[1725986898677,0.087961,56840.0,56839.0,0.05495672]
[1725986898981,0.088361,56840.0,56839.0,0.0028]
[1725986899271,0.087961,56840.0,56839.0,0.0028]
[1725986900379,0.088961,56840.0,56839.0,0.0098]
[1725986900771,0.176922,56840.0,56839.0,0.0208]
[1725986900967,0.176922,56840.0,56839.0,1e-08]
[1725986900968,1.304722,56840.0,56839.0,1e-08]
[1725986901274,1.392683,56840.0,56839.0,1e-08]
[1725986901978,1.392683,56840.0,56839.0,0.00700001]
[1725986902273,0.792683,56840.0,56839.0,0.00700001]
[1725986902779,0.704722,56840.0,56839.0,0.00700001]
[1725986903568,0.088961,56840.0,56839.0,0.00700001]
[1725986905575,0.001,56840.0,56839.0,0.00700001]
[1725986905885,0.001,56840.0,56839.0,0.09496301]
[1725986906282,0.001,56840.0,56839.0,0.21006301]
[1725986906869,0.087944,56852.0,56839.0,1.24990001]
[1725986907077,0.0004,56854.0,56847.0,0.2]
[1725986907382,0.01907665,56854.0,56848.0,0.0583]
[1725986907584,0.0004,56854.0,56848.0,0.0583]
[1725986907974,0.0004,56854.0,56850.0,0.087945]
[1725986908280,0.0004,56854.0,56852.0,0.087942]
[1725986908281,0.08834,56854.0,56852.0,0.087942]
[1725986909178,0.08834,56854.0,56853.0,0.087941]
[1725986909566,0.0004,56854.0,56853.0,0.087941]
[1725986909980,0.0004,56854.0,56853.0,0.615621]
[1725986910178,0.0004,56854.0,56853.0,1.215621]
[1725986910480,0.0044,56854.0,56853.0,1.271021]
[1725986911777,0.0084,56854.0,56853.0,1.271021]
[1725986912577,0.0004,56854.0,56853.0,1.271021]
[1725986912877,0.0024,56854.0,56853.0,1.271021]
[1725986914071,0.0024,56854.0,56853.0,1.28935825]
[1725986914267,0.0024,56854.0,56853.0,0.68935825]
[1725986914873,0.0024,56854.0,56853.0,1.28935825]
[1725986915067,0.087927,56862.0,56861.0,0.087929]
[1725986915271,0.087922,56866.0,56865.0,0.087923]
[1725986915985,0.10665188,56866.0,56865.0,0.087923]
[1725986918075,0.10665188,56866.0,56865.0,0.088923]
[1725986918076,0.11865188,56866.0,56865.0,0.088923]
[1725986918472,0.13265188,56866.0,56865.0,0.088923]
[1725986919482,0.22969028,56866.0,56865.0,0.06798843]
[1725986921981,0.14176828,56866.0,56865.0,0.06798843]
[1725986922277,0.1230384,56866.0,56865.0,0.35591143]
[1725986922483,0.1230384,56866.0,56865.0,0.26798843]
[1725986924583,0.1230384,56866.0,56865.0,0.06798843]
[1725986925171,0.06906249,56866.0,56865.0,0.06798843]
[1725986925377,0.06905646,56866.0,56865.0,0.26798843]
[1725986925686,0.06905646,56866.0,56865.0,0.35591143]
[1725986926076,0.19220247,56867.0,56866.0,0.175842]
[1725986926381,0.17465905,56870.0,56869.0,0.175832]
[1725986926579,0.087901,56879.0,56870.0,0.087915]
[1725986926784,0.087901,56879.0,56878.0,0.087901]
[1725986927177,0.087906,56876.0,56875.0,0.087907]
[1725986927486,0.088706,56876.0,56875.0,0.087907]
[1725986928573,0.088706,56876.0,56871.0,0.2]
[1725986928774,0.0008,56872.0,56869.0,0.087916]
[1725986928974,0.087917,56870.0,56869.0,0.087916]
[1725986929889,0.0008,56872.0,56871.0,0.087913]
[1725986930077,0.0008,56872.0,56871.0,0.287913]
[1725986930478,0.0008,56872.0,56871.0,0.087913]
[1725986930776,0.0008,56872.0,56871.0,0.088913]
[1725986931181,0.0108,56872.0,56871.0,0.089913]
[1725986936879,0.098712,56872.0,56871.0,0.089913]
[1725986940290,0.0108,56872.0,56871.0,0.089913]
[1725986940887,0.0108,56872.0,56871.0,0.090313]
[1725986941585,0.17087143,56872.0,56871.0,0.090313]
[1725986942298,0.39892061,56872.0,56871.0,0.290313]
[1725986942896,0.17087143,56872.0,56871.0,0.290313]
[1725986943096,0.25878343,56872.0,56871.0,0.090313]
[1725986943295,0.25878379,56872.0,56871.0,0.0024]
[1725986943688,0.48364009,56872.0,56871.0,0.0024]
[1725986943885,0.60369579,56872.0,56871.0,0.0024]
[1725986944595,0.51578379,56872.0,56871.0,0.0024]
[1725986944897,0.60369579,56872.0,56871.0,0.0024]
[1725986947804,0.60369579,56872.0,56871.0,0.00184813]
[1725986948394,0.25878379,56872.0,56871.0,0.00184813]
[1725986949700,0.17087179,56872.0,56871.0,0.28976113]
[1725986950201,0.0738557,56872.0,56871.0,0.28976113]
[1725986951207,0.0738557,56872.0,56871.0,0.37767413]
[1725986951399,0.0108,56872.0,56871.0,0.37767413]
[1725986951994,0.0108,56872.0,56871.0,1.59310713]
[1725986953906,0.22811725,56878.0,56877.0,0.087904]
[1725986954092,0.22811725,56878.0,56877.0,0.288304]
[1725986954406,0.0041,56892.0,56891.0,0.087882]
[1725986954609,0.148178,56894.0,56891.0,0.2004]
[1725986954901,0.148178,56894.0,56893.0,0.0004]
[1725986955104,0.24516225,56894.0,56893.0,0.0004]
[1725986955510,1.07937188,56894.0,56893.0,0.0004]
[1725986956502,0.99149388,56894.0,56893.0,0.0004]
[1725986956808,0.99449388,56894.0,56893.0,0.0014]
[1725986957008,0.99449388,56894.0,56893.0,0.0024]
[1725986957199,0.89750963,56894.0,56893.0,0.0024]
[1725986957606,0.98538763,56894.0,56893.0,0.0024]
[1725986957904,0.45806763,56894.0,56893.0,0.0024]
[1725986958108,0.37018963,56894.0,56893.0,0.0024]
[1725986959308,0.45806763,56894.0,56893.0,0.0024]
[1725986959506,1.49750963,56894.0,56893.0,0.0024]
[1725986960504,0.89750963,56894.0,56893.0,0.0024]
[1725986960701,0.98538763,56894.0,56893.0,0.0024]
[1725986960908,0.37018963,56894.0,56893.0,0.0024]
[1725986961108,0.45806763,56894.0,56893.0,0.0024]
[1725986961905,0.37018963,56894.0,56893.0,0.0024]
[1725986962106,0.45806763,56894.0,56893.0,0.0024]
[1725986962306,0.36718963,56894.0,56893.0,0.0014]
[1725986962502,0.37018963,56894.0,56893.0,0.0014]
[1725986962712,0.37018963,56894.0,56893.0,0.0024]
[1725986963222,0.17018963,56894.0,56893.0,0.0024]
[1725986963605,0.02201163,56894.0,56893.0,0.290279]
[1725986963819,0.003,56894.0,56893.0,0.290279]
[1725986964006,0.003,56894.0,56893.0,0.352779]
[1725986964815,0.003,56894.0,56893.0,1.567978]
[1725986965207,0.0052,56904.0,56903.0,0.087864]
[1725986965512,0.0052,56904.0,56903.0,0.2004]
[1725986965908,0.093062,56904.0,56903.0,0.2004]
[1725986966505,0.093062,56904.0,56903.0,0.0004]
[1725986966506,0.11145929,56904.0,56903.0,0.0004]
[1725986966911,0.11445929,56904.0,56903.0,0.0014]
[1725986967115,0.11445929,56904.0,56903.0,0.0024]
[1725986972316,0.21143015,56904.0,56903.0,0.0024]
[1725986973024,0.29929215,56904.0,56903.0,0.0024]
[1725986974422,0.21143015,56904.0,56903.0,0.0024]
[1725986974723,0.21143015,56904.0,56903.0,0.2024]
[1725986975022,0.10517086,56904.0,56903.0,0.287864]
[1725986976022,0.09997086,56904.0,56903.0,0.287864]
[1725986976325,0.10557086,56904.0,56903.0,0.287864]
[1725986976519,0.16559739,56904.0,56903.0,0.289864]
[1725986976821,0.10257086,56904.0,56903.0,0.289864]
[1725986977016,0.16559739,56904.0,56903.0,0.289864]
[1725986977222,0.10257086,56904.0,56903.0,0.289864]
[1725986977525,0.10257086,56904.0,56903.0,0.817064]
[1725986978009,0.10257086,56904.0,56903.0,0.289864]
[1725986978925,0.10255912,56904.0,56903.0,0.289864]
[1725986980225,0.0056,56904.0,56903.0,0.289864]
[1725986980720,0.093462,56904.0,56903.0,0.289864]
[1725986981727,0.093462,56904.0,56903.0,0.089864]
[1725986985230,0.093462,56904.0,56903.0,0.002]
[1725986985418,0.181324,56904.0,56903.0,0.002]
[1725986987322,0.22435489,56904.0,56903.0,0.002]
[1725986989326,0.31221689,56904.0,56903.0,0.002]
[1725986989924,0.37441689,56904.0,56903.0,0.002]
[1725986990827,0.28655489,56904.0,56903.0,0.002]
[1725986991428,0.3404935,56904.0,56903.0,0.002]
[1725986993428,0.34049739,56904.0,56903.0,0.002]
[1725986993824,0.42835939,56904.0,56903.0,0.002]
[1725986994028,0.34049739,56904.0,56903.0,0.002]
[1725986994428,0.087884,56890.0,56889.0,0.414685]
[1725986994625,0.087884,56890.0,56889.0,0.087885]
[1725986994626,0.13091764,56890.0,56889.0,0.087885]
[1725986994825,0.18486286,56890.0,56889.0,0.087885]
[1725986995026,0.09697886,56890.0,56889.0,0.087885]
[1725986995319,0.04391039,56893.0,56889.0,0.29144305]
[1725986995628,0.04391039,56893.0,56892.0,0.2008]
[1725986995831,0.04391039,56893.0,56892.0,0.13386]
[1725986996832,0.04491039,56893.0,56892.0,0.13386]
[1725986997030,0.06390696,56893.0,56892.0,0.13386]
[1725986997831,0.06390696,56893.0,56892.0,0.23841752]
[1725986998037,0.06690696,56893.0,56892.0,0.32629852]
[1725986998329,0.004,56893.0,56892.0,0.52573896]
[1725986998727,0.001,56893.0,56892.0,0.52573896]
[1725986998931,0.004,56893.0,56892.0,0.52573896]
[1725987000230,0.179758,56893.0,56892.0,0.13330044]
[1725987000632,0.179758,56893.0,56892.0,0.0008]
[1725987001331,0.267637,56893.0,56892.0,0.0008]
[1725987001534,0.329737,56893.0,56892.0,0.0008]
[1725987001736,0.153979,56893.0,56892.0,0.07050181]
[1725987002435,0.153979,56893.0,56892.0,0.0008]
[1725987002630,0.091879,56893.0,56892.0,0.0008]
[1725987006135,0.179758,56893.0,56892.0,0.0008]
[1725987006535,0.091879,56893.0,56892.0,0.0008]
[1725987006841,0.179758,56893.0,56892.0,0.0008]
[1725987007236,0.179758,56893.0,56878.0,0.05635146]
[1725987007237,0.087893,56885.0,56878.0,0.05635146]
[1725987007431,0.088301,56879.0,56877.0,0.148803]
[1725987007741,0.0004,56878.0,56877.0,0.148803]
[1725987008042,0.088301,56879.0,56877.0,0.148803]
[1725987008338,0.0004,56879.0,56878.0,0.087903]
[1725987008653,0.0004,56879.0,56878.0,0.15215446]
[1725987008939,0.0004,56879.0,56878.0,0.16115446]
[1725987009131,0.0004,56879.0,56878.0,0.14915446]
[1725987009533,0.0004,56879.0,56878.0,0.14015446]
[1725987009733,0.0004,56879.0,56878.0,0.14915446]
[1725987009939,0.0004,56879.0,56878.0,0.16115446]
[1725987010138,0.0004,56879.0,56878.0,0.108903]
[1725987010340,0.087895,56883.0,56882.0,0.087896]
[1725987010543,0.087895,56883.0,56882.0,0.42141983]
[1725987011345,0.087891,56886.0,56885.0,0.087892]
[1725987011548,0.087887,56889.0,56888.0,0.087887]
[1725987011842,0.087887,56889.0,56888.0,0.50842299]
[1725987012030,0.087887,56889.0,56888.0,0.50802299]
[1725987012430,0.087881,56892.0,56891.0,0.087881]
[1725987012642,0.087881,56892.0,56891.0,0.088281]
[1725987014341,0.175762,56892.0,56891.0,0.0004]
[1725987014544,0.19683941,56892.0,56891.0,0.0004]
[1725987014935,0.19683941,56892.0,56891.0,0.07010786]
[1725987015335,0.19883941,56892.0,56891.0,0.0004]
[1725987015541,0.11095841,56892.0,56891.0,0.0004]
[1725987016842,0.10895841,56892.0,56891.0,0.0004]
[1725987017044,0.11095841,56892.0,56891.0,0.0004]
[1725987018652,0.10895841,56892.0,56891.0,0.0004]
[1725987018945,0.11095841,56892.0,56891.0,0.0004]
[1725987019347,0.10695841,56892.0,56891.0,0.0004]
[1725987019547,0.11095841,56892.0,56891.0,0.0014]
[1725987020954,0.11095841,56892.0,56891.0,0.089282]
[1725987021439,0.02107741,56892.0,56891.0,0.30909695]
[1725987021637,0.11095841,56892.0,56891.0,0.30909695]
[1725987022046,0.11095841,56892.0,56891.0,0.22121495]
[1725987022248,0.11095841,56892.0,56891.0,0.22021495]
[1725987022748,0.19883941,56892.0,56891.0,0.22021495]
[1725987022944,0.19883941,56892.0,56891.0,0.0004]
[1725987023340,0.11095841,56892.0,56891.0,0.22025004]
[1725987023542,0.11095841,56892.0,56891.0,0.13317211]
[1725987024550,0.20794831,56892.0,56891.0,0.0004]
[1725987025646,0.20794831,56892.0,56891.0,0.0014]
[1725987026648,0.82314931,56892.0,56891.0,0.0014]
[1725987026851,0.82314931,56892.0,56885.0,0.0004]
[1725987026852,0.08789,56886.0,56885.0,0.0004]
[1725987027054,0.41922097,56886.0,56885.0,0.0004]
[1725987027251,0.4731699,56886.0,56885.0,0.0004]
[1725987027757,0.087897,56882.0,56874.0,0.3227]
[1725987027951,0.087907,56875.0,56873.0,0.15491]
[1725987028257,0.48110246,56882.0,56868.0,0.0016]
[1725987028258,0.087915,56870.0,56868.0,0.0016]
[1725987028559,0.2969899,56869.0,56868.0,0.0016]
[1725987028747,0.0969899,56869.0,56868.0,0.0016]
[1725987028945,0.29021998,56869.0,56868.0,0.089518]
[1725987029244,0.0969899,56869.0,56868.0,0.089518]
[1725987029450,0.17813598,56871.0,56868.0,0.0016]
[1725987029756,0.2,56872.0,56868.0,0.0016]
[1725987029757,0.287916,56869.0,56868.0,0.0016]
[1725987029955,0.3849381,56869.0,56868.0,0.0016]
[1725987030462,0.3849381,56869.0,56868.0,0.0156]
[1725987030953,0.38494628,56869.0,56868.0,0.0296]
[1725987031557,0.56034402,56869.0,56868.0,0.0256]
[1725987031756,0.38494628,56869.0,56868.0,0.0256]
[1725987032058,0.38494628,56869.0,56868.0,0.0186]
[1725987032667,0.287916,56869.0,56868.0,0.0186]
[1725987033661,0.287913,56872.0,56868.0,0.0186]
[1725987033855,0.087915,56870.0,56869.0,0.05226938]
[1725987034052,0.087916,56869.0,56868.0,0.0186]
[1725987034262,0.088316,56869.0,56868.0,0.0186]
[1725987034661,0.088316,56869.0,56868.0,0.0086]
[1725987034851,0.088316,56869.0,56868.0,0.0186]
[1725987035260,0.288316,56869.0,56868.0,0.0186]
[1725987036157,0.376232,56869.0,56868.0,0.0186]
[1725987036354,0.288316,56869.0,56868.0,0.0116]
[1725987036558,0.088316,56869.0,56868.0,0.0186]
[1725987039453,0.0004,56869.0,56868.0,0.0186]
[1725987039653,0.0004,56869.0,56868.0,0.106518]
[1725987039859,0.0004,56869.0,56868.0,0.17630814]
[1725987040257,0.0004,56869.0,56868.0,0.37630814]
[1725987040462,0.06222795,56876.0,56874.0,0.087908]
[1725987040664,0.152298,56881.0,56874.0,0.14009652]
[1725987040665,0.087907,56875.0,56874.0,0.14009652]
[1725987041059,0.087907,56875.0,56874.0,0.087908]
[1725987041768,0.087907,56875.0,56874.0,0.090908]
[1725987042465,0.087909,56874.0,56872.0,0.05218852]
[1725987042658,0.0004,56873.0,56872.0,0.14010052]
[1725987042960,0.0004,56873.0,56872.0,0.087912]
[1725987043560,0.0004,56873.0,56872.0,0.14010052]
[1725987044761,0.0004,56873.0,56872.0,0.14210052]
[1725987045364,0.0004,56873.0,56872.0,0.14810052]
[1725987045663,0.0004,56873.0,56872.0,0.095912]
[1725987045864,0.0004,56873.0,56872.0,0.089912]
[1725987046062,0.0004,56873.0,56872.0,0.1654967]
[1725987046259,0.0004,56873.0,56872.0,0.3654967]
[1725987046759,0.0004,56873.0,56872.0,0.47106168]
[1725987046966,0.0004,56873.0,56872.0,0.60398042]
[1725987047366,0.0004,56873.0,56872.0,0.22883074]
[1725987047661,0.0004,56873.0,56872.0,0.095912]
[1725987048555,0.0004,56873.0,56872.0,0.295912]
[1725987048764,0.0629,56887.0,56875.0,0.087907]
[1725987048958,0.0629,56887.0,56886.0,0.08789]
[1725987048959,0.150789,56887.0,56886.0,0.08789]
[1725987049264,0.087889,56887.0,56886.0,0.08789]
[1725987049863,0.10718834,56887.0,56886.0,0.08789]
[1725987050862,0.10918834,56887.0,56886.0,0.08889]
[1725987052056,0.11118834,56887.0,56886.0,0.08989]
[1725987053569,0.005,56887.0,56886.0,0.17778]
[1725987053759,0.00080001,56887.0,56886.0,1.30514]
[1725987054268,0.00080001,56887.0,56886.0,1.39303]
[1725987054670,0.0615,56903.0,56899.0,0.087869]
[1725987054867,0.0072,56901.0,56900.0,0.05219635]
[1725987055179,0.087869,56900.0,56899.0,0.05219635]
[1725987055471,0.08787,56899.0,56898.0,0.05219635]
[1725987055769,0.087872,56898.0,56897.0,0.087873]
[1725987055968,0.087875,56896.0,56895.0,0.13519513]
[1725987056267,0.087875,56896.0,56895.0,0.06959513]
[1725987056476,0.087875,56896.0,56895.0,0.0004]
[1725987057266,0.087875,56896.0,56895.0,0.05256022]
[1725987057868,0.087875,56896.0,56895.0,0.05356022]
[1725987058378,0.087875,56896.0,56895.0,0.0024]
[1725987058576,0.287875,56896.0,56895.0,0.0024]
[1725987059077,1.50303,56896.0,56895.0,0.0024]
[1725987059370,0.90303,56896.0,56895.0,0.0024]
[1725987059673,1.50303,56896.0,56895.0,0.0024]
[1725987060971,0.087887,56888.0,56887.0,0.05216022]
[1725987061269,0.087887,56888.0,56886.0,0.14004922]
[1725987061461,0.0004,56887.0,56886.0,0.14004922]
[1725987061662,0.0004,56887.0,56886.0,0.087889]
[1725987062575,0.04344165,56887.0,56886.0,0.087889]
[1725987063771,0.13133065,56887.0,56886.0,0.002]
[1725987064170,0.087897,56882.0,56880.0,0.0671]
[1725987064377,0.0004,56881.0,56878.0,0.087901]
[1725987064675,0.0004,56879.0,56878.0,0.087901]
[1725987064880,0.088298,56881.0,56879.0,0.0879]
[1725987065177,0.0004,56881.0,56880.0,0.088299]
[1725987068075,0.0004,56881.0,56880.0,0.090299]
[1725987068577,0.0014,56881.0,56880.0,0.090299]
[1725987069676,0.0014,56881.0,56880.0,0.22285658]
[1725987069881,0.0014,56881.0,56880.0,0.31075558]
[1725987070076,0.08789,56886.0,56885.0,0.08789]
[1725987070376,0.08789,56886.0,56885.0,0.08829]
[1725987071983,0.08889,56886.0,56885.0,0.08829]
[1725987072980,0.001,56886.0,56885.0,0.08829]
[1725987073184,0.001,56886.0,56885.0,0.37101608]
[1725987073373,0.001,56886.0,56885.0,0.483892]
[1725987073572,0.087875,56896.0,56895.0,0.087873]
[1725987073773,0.287875,56896.0,56895.0,0.0004]
[1725987073979,1.50303,56896.0,56895.0,0.0004]
[1725987074173,1.590905,56896.0,56895.0,0.0004]
[1725987074776,1.50403,56896.0,56895.0,0.0014]
[1725987076483,1.50403,56896.0,56895.0,0.0024]
[1725987077376,1.5470748,56896.0,56895.0,0.0024]
[1725987077579,0.087895,56884.0,56881.0,0.091996]
[1725987077884,0.087903,56878.0,56875.0,0.087906]
[1725987078083,0.0004,56876.0,56875.0,0.087906]
[1725987079892,0.0004,56876.0,56875.0,0.089906]
[1725987080689,0.0004,56876.0,56875.0,0.093906]
[1725987085296,0.0004,56876.0,56875.0,0.38551218]
[1725987085501,0.04432407,56879.0,56878.0,0.087903]
[1725987085803,0.04432407,56879.0,56878.0,0.22133734]
[1725987086595,0.04532407,56879.0,56878.0,0.37971304]
[1725987086794,0.04532407,56879.0,56878.0,0.22133734]
[1725987087903,0.04532407,56879.0,56878.0,0.22233734]
[1725987088103,0.04532407,56879.0,56878.0,0.38074783]
[1725987088804,0.087896,56882.0,56878.0,0.49384483]
[1725987089001,0.087893,56885.0,56884.0,0.08789]
[1725987089205,0.087893,56885.0,56884.0,0.22092434]
[1725987089400,0.087893,56885.0,56884.0,0.325818]
[1725987091704,0.375786,56885.0,56884.0,0.237928]
[1725987092007,0.375786,56885.0,56884.0,0.13303434]
[1725987092008,0.376786,56885.0,56884.0,0.13303434]
[1725987092401,0.087893,56884.0,56881.0,0.0004]
[1725987092603,0.29800059,56885.0,56881.0,0.0004]
[1725987092604,0.375792,56882.0,56881.0,0.0004]
[1725987092811,0.087912,56872.0,56871.0,0.0032]
[1725987093001,0.33135771,56872.0,56871.0,0.0032]
[1725987093203,0.33095771,56872.0,56871.0,0.0032]
[1725987093402,1.51244324,56872.0,56857.0,0.3268]
[1725987093606,0.0008,56858.0,56857.0,0.3227]
[1725987093805,0.0008,56858.0,56852.0,0.1303]
[1725987093806,0.2008,56858.0,56852.0,0.0672]
[1725987094107,0.2008,56858.0,56843.0,0.3268]
[1725987094108,0.2008,56853.0,56849.0,0.087946]
[1725987094310,0.0430627,56852.0,56850.0,0.087946]
[1725987094509,0.087939,56855.0,56850.0,0.087946]
[1725987094805,0.0430673,56854.0,56850.0,0.087946]
[1725987095010,0.0430673,56853.0,56850.0,0.087946]
[1725987095207,0.0430673,56852.0,56850.0,0.087946]
[1725987095405,0.087939,56855.0,56850.0,0.101946]
[1725987095610,0.087941,56853.0,56850.0,0.014]
[1725987095907,0.04306806,56852.0,56850.0,0.014]
[1725987096112,0.087941,56853.0,56850.0,0.025]
[1725987096311,0.0430683,56852.0,56850.0,0.025]
[1725987096615,0.087941,56853.0,56850.0,0.025]
[1725987097813,0.087944,56851.0,56850.0,0.026]
[1725987098106,0.087944,56851.0,56850.0,0.012]
[1725987098306,0.087944,56851.0,56850.0,0.026]
[1725987098508,0.087944,56851.0,56837.0,0.0661]
[1725987098509,0.08796,56842.0,56837.0,0.0041]
[1725987098707,1.12768,56851.0,56835.0,0.089049]
[1725987098708,0.0008,56838.0,56835.0,0.089049]
[1725987098911,0.0008,56836.0,56835.0,0.087969]
[1725987099103,0.0008,56838.0,56835.0,0.087969]
[1725987099707,0.0008,56838.0,56837.0,0.087966]
[1725987101311,0.0018,56838.0,56837.0,0.087966]
[1725987101516,0.0018,56838.0,56837.0,0.15761119]
[1725987102015,0.0018,56838.0,56837.0,0.37061119]
[1725987102217,0.0028,56838.0,56837.0,0.37261119]
[1725987102614,0.0028,56838.0,56837.0,0.08464519]
[1725987102824,0.0028,56838.0,56837.0,0.015]
[1725987102825,1.30157839,56838.0,56837.0,0.015]
[1725987103113,1.21361439,56838.0,56837.0,0.0158]
[1725987103308,0.61361439,56838.0,56837.0,0.0158]
[1725987103509,0.08577439,56838.0,56837.0,0.0158]
[1725987104314,0.08677439,56838.0,56837.0,0.0218]
[1725987104517,0.08777439,56838.0,56837.0,0.0188]
[1725987108723,0.002,56838.0,56837.0,0.106766]
[1725987109022,0.150959,56842.0,56837.0,0.106766]
[1725987109023,0.087959,56842.0,56837.0,0.2188]
[1725987109212,0.02361155,56843.0,56841.0,0.087958]
[1725987109416,0.02361155,56843.0,56838.0,0.087964]
[1725987109417,0.087958,56843.0,56838.0,0.087964]
[1725987109721,0.0008,56839.0,56837.0,0.0188]
[1725987109912,0.087964,56838.0,56837.0,0.0188]
[1725987110818,0.087964,56838.0,56837.0,0.0198]
[1725987111415,0.088964,56838.0,56837.0,0.0088]
[1725987111621,0.089964,56838.0,56837.0,0.0198]
[1725987114712,0.11355104,56838.0,56837.0,0.0198]
[1725987116421,0.002,56838.0,56837.0,0.107766]
[1725987116623,0.002,56838.0,56837.0,0.307766]
[1725987116817,0.002,56838.0,56837.0,0.835606]
[1725987117718,0.002,56838.0,56837.0,0.307766]
[1725987117917,0.002,56838.0,56837.0,0.107766]
[1725987118522,0.089964,56838.0,56837.0,0.107766]
[1725987118722,0.002,56838.0,56837.0,0.107766]
[1725987120621,0.089964,56838.0,56837.0,0.0198]
[1725987121127,0.089964,56838.0,56837.0,0.107766]
[1725987121924,0.377928,56838.0,56837.0,0.0198]
[1725987122118,0.089964,56838.0,56837.0,0.0198]
[1725987122318,0.002,56838.0,56837.0,0.307766]
[1725987122529,0.0636,56853.0,56839.0,0.087962]
[1725987122728,0.087934,56858.0,56839.0,0.087962]
[1725987122729,0.087943,56852.0,56851.0,0.17532067]
[1725987122923,0.2,56862.0,56851.0,0.33347309]
[1725987123124,0.2,56862.0,56858.0,0.06989195]
[1725987123325,0.2,56862.0,56859.0,0.06989195]
[1725987123624,0.2,56862.0,56859.0,0.08736494]
[1725987123625,0.087932,56860.0,56859.0,0.08736494]
[1725987123832,0.087932,56860.0,56859.0,0.22067748]
[1725987124532,0.087932,56860.0,56859.0,0.13331254]
[1725987124729,0.087932,56860.0,56859.0,0.22075879]
[1725987124924,0.087932,56860.0,56859.0,0.13331254]
[1725987125122,0.02345773,56862.0,56859.0,0.13331254]